[Event "XXVII RUS-chT Premier 2020"]
[Site "Sochi"]
[Date "2020.11.19"]
[Round "1.17"]
[White "Belyakov, Bogdan"]
[Black "Samusenko, Maksim"]
[Result "1/2-1/2"]
[ECO "B30"]
[WhiteElo "2450"]
[BlackElo "2466"]
[Annotator "ChessBase"]
[PlyCount "120"]
[EventDate "2020.11.19"]
[EventType "team-tourn"]
[EventCountry "RUS"]
[SourceTitle "playchess.com"]
[Source "ChessBase"]
[SourceQuality "1"]
[TimeControl "40/5400+30:1800+30"]

1. e4 {[%emt 0:00:00]} c5 {[%emt 0:00:00]} 2. Nf3 {[%emt 0:00:00]} Nc6 {[%emt 0:00:12]} 3. c3 {[%emt 0:00:21]} Nf6 {[%emt 0:00:52]} 4. e5 {[%emt 0:00:27]} Nd5 {[%emt 0:00:19]} 5. d4 {[%emt 0:01:17]} cxd4 {[%emt 0:00:48]} 6. cxd4 {[%emt 0:00:46]} d6 {[%emt 0:00:22]} 7. Bc4 {[%emt 0:02:14]} dxe5 {[%emt 0:01:15]} 8. dxe5 {[%emt 0:01:56]} Ndb4 {[%emt 0:01:36]} 9. Qb3 {[%emt 0:02:47]} e6 {[%emt 0:01:52]} 10. O-O {[%emt 0:01:53]} Na5 {[%emt 0:01:16]} 11. Qa4+ {[%emt 0:00:14]} Bd7 {[%emt 0:00:52]} 12. Bb5 {[%emt 0:00:06]} Bxb5 {[%emt 0:01:25]} 13. Qxb5+ {[%emt 0:00:06]} Nac6 {[%emt 0:00:25]} 14. Nc3 {[%emt 0:00:09]} a6 {[%emt 0:01:24]} 15. Qc4 {[%emt 0:06:17]} Qd3 {[%emt 0:01:11]} 16. Qg4 {[%emt 0:00:31]} h5 {[%emt 0:01:32]} 17. Qf4 {[%emt 0:06:27]} Qg6 {[%emt 0:22:28]} 18. Rd1 {[%emt 0:08:03]} Be7 {[%emt 0:11:20]} 19. a3 {[%emt 0:06:25]} Nd3 {[%emt 0:04:36]} 20. Qe3 {[%emt 0:01:05]} Nxc1 {[%emt 0:10:58]} 21. Raxc1 {[%emt 0:00:13]} O-O {[%emt 0:02:00]} 22. Rd7 {[%emt 0:03:09]} Rab8 {[%emt 0:03:17]} 23. Qb6 {[%emt 0:09:39]} Bd8 {[%emt 0:04:16]} 24. Qc5 {[%emt 0:02:12]} Bg5 {[%emt 0:06:36]} 25. Rcd1 {[%emt 0:02:17]} Rfd8 {[%emt 0:01:42]} 26. h4 {[%emt 0:16:35]} Rxd7 {[%emt 0:02:33]} 27. Rxd7 {[%emt 0:00:09]} Bf4 {[%emt 0:00:22]} 28. Qb6 {[%emt 0:08:43]} Nxe5 {[%emt 0:05:36]} 29. Nxe5 {[%emt 0:00:49]} Bxe5 {[%emt 0:00:05]} 30. Rxb7 {[%emt 0:01:13]} Rc8 {[%emt 0:05:05]} 31. Qxa6 {[%emt 0:05:13]} Bxc3 {[%emt 0:01:46]} 32. Rb5 {[%emt 0:03:02]} Rd8 {[%emt 0:04:14]} 33. bxc3 {[%emt 0:00:10]} Qe4 {[%emt 0:00:50]} 34. Rb4 {[%emt 0:02:47]} Qe1+ {[%emt 0:02:07]} 35. Qf1 {[%emt 0:07:20]} Qxc3 {[%emt 0:00:04]} 36. Qb1 {[%emt 0:00:17]} Qxa3 {[%emt 0:00:26]} 37. Rb8 {[%emt 0:00:06]} Qd6 {[%emt 0:00:53]} 38. Rxd8+ {[%emt 0:00:08]} Qxd8 {[%emt 0:00:03]} 39. g3 {[%emt 0:00:05]} Qd5 {[%emt 0:00:33]} 40. Qb8+ {[%emt 0:00:00]} Kh7 {[%emt 0:00:00]} 41. Qf4 {[%emt 0:01:21]} Kg6 {[%emt 0:02:28]} 42. Qc1 {[%emt 0:00:28]} Qf5 {[%emt 0:02:36]} 43. Qe3 {[%emt 0:01:07]} Kh7 {[%emt 0:01:01]} 44. Kg2 {[%emt 0:00:19]} g6 {[%emt 0:00:46]} 45. Kg1 {[%emt 0:00:25]} Qd5 {[%emt 0:00:56]} 46. Qc3 {[%emt 0:00:58]} e5 {[%emt 0:01:11]} 47. Qe3 {[%emt 0:00:39]} Kg7 {[%emt 0:00:28]} 48. Qc3 {[%emt 0:01:46]} Kf6 {[%emt 0:02:03]} 49. Qe3 {[%emt 0:00:35]} Kf5 {[%emt 0:02:13]} 50. Qg5+ {[%emt 0:00:33]} Ke6 {[%emt 0:00:34]} 51. Qc1 {[%emt 0:00:30]} Kd7 {[%emt 0:02:39]} 52. Qe3 {[%emt 0:00:14]} Qd4 {[%emt 0:00:55]} 53. Qf3 {[%emt 0:01:27]} Ke7 {[%emt 0:01:17]} 54. Qb7+ {[%emt 0:00:13]} Kf6 {[%emt 0:00:11]} 55. Qf3+ {[%emt 0:00:06]} Kg7 {[%emt 0:00:18]} 56. Kg2 {[%emt 0:00:27]} Qd8 {[%emt 0:02:24]} 57. Kg1 {[%emt 0:02:49]} Qf6 {[%emt 0:00:14]} 58. Qd5 {[%emt 0:00:25]} g5 {[%emt 0:00:28]} 59. hxg5 {[%emt 0:00:46]} Qxg5 {[%emt 0:00:05]} 60. Qe4 {[%emt 0:03:44]} Kh6 {[%emt 0:05:08]} 1/2-1/2

[Event "XXVII RUS-chT Premier 2020"]
[Site "Sochi"]
[Date "2020.11.19"]
[Round "1.18"]
[White "Faizrakhmanov, Ramil"]
[Black "Savitskiy, Sergey"]
[Result "1-0"]
[ECO "E71"]
[WhiteElo "2450"]
[BlackElo "2451"]
[Annotator "ChessBase"]
[PlyCount "69"]
[EventDate "2020.11.19"]
[EventType "team-tourn"]
[EventCountry "RUS"]
[SourceTitle "playchess.com"]
[Source "ChessBase"]
[SourceQuality "1"]
[TimeControl "40/5400+30:1800+30"]

1. d4 {[%emt 0:00:00]} Nf6 {[%emt 0:00:00]} 2. c4 {[%emt 0:00:00]} g6 {[%emt 0:00:00]} 3. Nc3 {[%emt 0:00:00]} Bg7 {[%emt 0:00:00]} 4. e4 {[%emt 0:00:14]} d6 {[%emt 0:00:06]} 5. h3 {[%emt 0:00:16]} O-O {[%emt 0:00:12]} 6. Be3 {[%emt 0:00:17]} e5 {[%emt 0:04:38]} 7. d5 {[%emt 0:00:25]} a5 {[%emt 0:00:07]} 8. g4 {[%emt 0:01:05]} Nfd7 {[%emt 0:00:20]} 9. Qd2 {[%emt 0:01:09]} Nc5 {[%emt 0:01:39]} 10. Nge2 {[%emt 0:02:11]} c6 {[%emt 0:17:19]} 11. Ng3 {[%emt 0:04:09]} cxd5 {[%emt 0:01:01]} 12. cxd5 {[%emt 0:01:05]} a4 {[%emt 0:00:32]} 13. Rc1 {[%emt 0:04:07]} Nba6 {[%emt 0:05:05]} 14. Be2 {[%emt 0:04:50]} Kh8 {[%emt 0:30:12]} 15. h4 {[%emt 0:08:48]} f5 {[%emt 0:00:57]} 16. gxf5 {[%emt 0:05:41]} gxf5 {[%emt 0:00:36]} 17. exf5 {[%emt 0:01:11]} Bxf5 {[%emt 0:00:15]} 18. h5 {[%emt 0:10:36]} e4 {[%emt 0:04:00]} 19. h6 {[%emt 0:03:53]} Be5 {[%emt 0:02:11]} 20. Rh5 {[%emt 0:04:08]} Bg6 {[%emt 0:19:19]} 21. Rxe5 {[%emt 0:00:38]} dxe5 {[%emt 0:00:04]} 22. Bxa6 {[%emt 0:00:13]} Nxa6 {[%emt 0:00:04]} 23. Nxa4 {[%emt 0:00:43]} Qh4 {[%emt 0:06:47]} 24. Nb6 {[%emt 0:00:47]} Rae8 {[%emt 0:03:18]} 25. d6 {[%emt 0:01:02]} Qf6 {[%emt 0:03:13]} 26. Nd7 {[%emt 0:01:08]} Qe6 {[%emt 0:00:30]} 27. Nxf8 {[%emt 0:00:07]} Rxf8 {[%emt 0:00:03]} 28. d7 {[%emt 0:02:07]} Rd8 {[%emt 0:00:52]} 29. Bg5 {[%emt 0:00:11]} Rxd7 {[%emt 0:00:37]} 30. Rc8+ {[%emt 0:00:07]} Be8 {[%emt 0:00:04]} 31. Bf6+ {[%emt 0:00:04]} Kg8 {[%emt 0:00:33]} 32. Qg5+ {[%emt 0:00:18]} Kf8 {[%emt 0:00:18]} 33. Nxe4 {[%emt 0:01:10]} Nb4 {[%emt 0:01:06]} 34. Bg7+ {[%emt 0:00:14]} Kf7 {[%emt 0:00:26]} 35. Qh5+ {[%emt 0:00:13]} 1-0

[Event "XXVII RUS-chT Premier 2020"]
[Site "Sochi"]
[Date "2020.11.19"]
[Round "1.22"]
[White "Sarana, Alexey"]
[Black "Saveliev, Alexei"]
[Result "1-0"]
[ECO "E12"]
[WhiteElo "2636"]
[BlackElo "2363"]
[Annotator "ChessBase"]
[PlyCount "75"]
[EventDate "2020.11.19"]
[EventType "team-tourn"]
[EventCountry "RUS"]
[SourceTitle "playchess.com"]
[Source "ChessBase"]
[SourceQuality "1"]
[TimeControl "40/5400+30:1800+30"]

1. d4 {[%emt 0:00:00]} Nf6 {[%emt 0:00:00]} 2. c4 {[%emt 0:00:00]} e6 {[%emt 0:00:00]} 3. Nf3 {[%emt 0:00:00]} b6 {[%emt 0:00:45]} 4. a3 {[%emt 0:00:00]} Bb7 {[%emt 0:05:04]} 5. Nc3 {[%emt 0:00:06]} d5 {[%emt 0:00:06]} 6. Bg5 {[%emt 0:00:07]} Be7 {[%emt 0:03:07]} 7. Bxf6 {[%emt 0:00:10]} Bxf6 {[%emt 0:00:07]} 8. cxd5 {[%emt 0:00:05]} exd5 {[%emt 0:00:10]} 9. g3 {[%emt 0:00:09]} O-O {[%emt 0:05:35]} 10. Bg2 {[%emt 0:01:42]} Re8 {[%emt 0:02:52]} 11. O-O {[%emt 0:00:17]} Nd7 {[%emt 0:14:46]} 12. e3 {[%emt 0:00:28]} Nf8 {[%emt 0:02:36]} 13. b4 {[%emt 0:10:16]} c5 {[%emt 0:14:46]} 14. Rc1 {[%emt 0:05:01]} c4 {[%emt 0:06:46]} 15. h4 {[%emt 0:08:26]} Qe7 {[%emt 0:03:44]} 16. Nh2 {[%emt 0:04:27]} Rad8 {[%emt 0:04:30]} 17. Ng4 {[%emt 0:01:01]} h6 {[%emt 0:03:16]} 18. b5 {[%emt 0:12:24]} Nh7 {[%emt 0:01:46]} 19. a4 {[%emt 0:02:15]} Qc7 {[%emt 0:03:34]} 20. Qf3 {[%emt 0:12:22]} Be7 {[%emt 0:04:08]} 21. Qf5 {[%emt 0:08:36]} Ba3 {[%emt 0:05:50]} 22. Nxd5 {[%emt 0:03:57]} Qd7 {[%emt 0:07:57]} 23. Qxd7 {[%emt 0:03:51]} Rxd7 {[%emt 0:00:02]} 24. Rc3 {[%emt 0:00:16]} Bb2 {[%emt 0:04:01]} 25. Rc2 {[%emt 0:00:11]} Bxd4 {[%emt 0:00:17]} 26. Rd1 {[%emt 0:06:24]} Bxd5 {[%emt 0:00:10]} 27. Rxd4 {[%emt 0:01:50]} Be6 {[%emt 0:00:07]} 28. Rxd7 {[%emt 0:01:28]} Bxd7 {[%emt 0:00:02]} 29. Rxc4 {[%emt 0:00:27]} Be6 {[%emt 0:06:35]} 30. Rd4 {[%emt 0:00:11]} Bf5 {[%emt 0:00:07]} 31. Bc6 {[%emt 0:00:45]} Re7 {[%emt 0:00:09]} 32. Nh2 {[%emt 0:03:04]} Nf8 {[%emt 0:00:18]} 33. e4 {[%emt 0:03:33]} Ne6 {[%emt 0:00:19]} 34. Rd6 {[%emt 0:00:53]} Bg6 {[%emt 0:01:51]} 35. f4 {[%emt 0:00:47]} f5 {[%emt 0:00:59]} 36. exf5 {[%emt 0:00:50]} Bxf5 {[%emt 0:00:02]} 37. g4 {[%emt 0:00:10]} Bc2 {[%emt 0:01:30]} 38. Bd5 {[%emt 0:00:17]} 1-0

[Event "XXVII RUS-chT Premier 2020"]
[Site "Sochi"]
[Date "2020.11.19"]
[Round "1.24"]
[White "Grachev, Boris"]
[Black "Golikov, Daniil"]
[Result "1-0"]
[ECO "D45"]
[WhiteElo "2612"]
[BlackElo "2230"]
[Annotator "ChessBase"]
[PlyCount "67"]
[EventDate "2020.11.19"]
[EventType "team-tourn"]
[EventCountry "RUS"]
[SourceTitle "playchess.com"]
[Source "ChessBase"]
[SourceQuality "1"]
[TimeControl "40/5400+30:1800+30"]

1. d4 {[%emt 0:00:00]} d5 {[%emt 0:00:00]} 2. c4 {[%emt 0:01:05]} c6 {[%emt 0:00:01]} 3. Nf3 {[%emt 0:00:29]} Nf6 {[%emt 0:00:09]} 4. Nc3 {[%emt 0:00:33]} e6 {[%emt 0:02:02]} 5. e3 {[%emt 0:00:25]} Nbd7 {[%emt 0:00:06]} 6. Qc2 {[%emt 0:00:23]} Bd6 {[%emt 0:01:21]} 7. Bd3 {[%emt 0:00:14]} O-O {[%emt 0:06:42]} 8. O-O {[%emt 0:01:55]} dxc4 {[%emt 0:02:11]} 9. Bxc4 {[%emt 0:00:12]} e5 {[%emt 0:00:42]} 10. Bb3 {[%emt 0:02:47]} Qe7 {[%emt 0:04:09]} 11. h3 {[%emt 0:01:35]} Bc7 {[%emt 0:13:55]} 12. Bd2 {[%emt 0:08:17]} h6 {[%emt 0:05:59]} 13. Nh4 {[%emt 0:06:37]} Nb6 {[%emt 0:06:47]} 14. Ng6 {[%emt 0:02:40]} Qe8 {[%emt 0:02:10]} 15. Nxf8 {[%emt 0:03:42]} exd4 {[%emt 0:04:31]} 16. Nb5 {[%emt 0:12:22]} Bb8 {[%emt 0:03:15]} 17. Ng6 {[%emt 0:12:59]} cxb5 {[%emt 0:13:48]} 18. exd4 {[%emt 0:00:13]} Nbd5 {[%emt 0:04:10]} 19. Rfe1 {[%emt 0:01:13]} Be6 {[%emt 0:01:00]} 20. Ne5 {[%emt 0:00:05]} Qd8 {[%emt 0:15:08]} 21. Qd3 {[%emt 0:02:44]} a6 {[%emt 0:00:53]} 22. Qg3 {[%emt 0:02:18]} Nh5 {[%emt 0:02:21]} 23. Qf3 {[%emt 0:01:20]} Nhf6 {[%emt 0:00:02]} 24. Rad1 {[%emt 0:02:28]} Ba7 {[%emt 0:02:07]} 25. Nd3 {[%emt 0:06:22]} Bxd4 {[%emt 0:02:55]} 26. Nf4 {[%emt 0:00:42]} Nxf4 {[%emt 0:04:28]} 27. Bxf4 {[%emt 0:00:05]} Bxb3 {[%emt 0:00:33]} 28. axb3 {[%emt 0:02:47]} Qb6 {[%emt 0:00:13]} 29. Re7 {[%emt 0:00:51]} Qc5 {[%emt 0:02:20]} 30. Rc7 {[%emt 0:11:42]} Qb4 {[%emt 0:00:19]} 31. Bd2 {[%emt 0:00:53]} Qf8 {[%emt 0:00:41]} 32. Qxb7 {[%emt 0:04:28]} Rd8 {[%emt 0:00:21]} 33. Be3 {[%emt 0:01:33]} Bxe3 {[%emt 0:00:14]} 34. Rxd8 {[%emt 0:00:10]} 1-0

[Event "XXVII RUS-chT Premier 2020"]
[Site "Sochi"]
[Date "2020.11.19"]
[Round "1.26"]
[White "Kardashevskiy, Evgeny"]
[Black "Dreev, Aleksey"]
[Result "0-1"]
[ECO "E11"]
[WhiteElo "2436"]
[BlackElo "2655"]
[Annotator "ChessBase"]
[PlyCount "179"]
[EventDate "2020.11.19"]
[EventType "team-tourn"]
[EventCountry "RUS"]
[SourceTitle "playchess.com"]
[Source "ChessBase"]
[SourceQuality "1"]
[TimeControl "40/5400+30:1800+30"]

1. d4 {[%emt 0:00:00]} Nf6 {[%emt 0:00:00]} 2. Nf3 {[%emt 0:00:00]} e6 {[%emt 0:00:00]} 3. c4 {[%emt 0:00:30]} Bb4+ {[%emt 0:00:00]} 4. Nbd2 {[%emt 0:00:57]} b6 {[%emt 0:00:32]} 5. a3 {[%emt 0:00:48]} Bxd2+ {[%emt 0:00:07]} 6. Qxd2 {[%emt 0:00:22]} Bb7 {[%emt 0:00:14]} 7. e3 {[%emt 0:00:35]} a5 {[%emt 0:00:26]} 8. b3 {[%emt 0:00:28]} O-O {[%emt 0:00:36]} 9. Be2 {[%emt 0:01:06]} d6 {[%emt 0:00:17]} 10. Bb2 {[%emt 0:03:03]} Nbd7 {[%emt 0:00:16]} 11. O-O {[%emt 0:00:45]} Qe7 {[%emt 0:00:08]} 12. Qc2 {[%emt 0:00:52]} c5 {[%emt 0:01:05]} 13. Rfd1 {[%emt 0:02:12]} Rfd8 {[%emt 0:00:11]} 14. Rac1 {[%emt 0:14:46]} Rac8 {[%emt 0:01:42]} 15. Qb1 {[%emt 0:01:18]} h6 {[%emt 0:04:05]} 16. Ba1 {[%emt 0:02:28]} Be4 {[%emt 0:23:10]} 17. Qb2 {[%emt 0:01:23]} Bg6 {[%emt 0:00:14]} 18. h3 {[%emt 0:04:13]} Bh5 {[%emt 0:09:12]} 19. Rc2 {[%emt 0:06:45]} Qf8 {[%emt 0:03:19]} 20. Ne1 {[%emt 0:06:23]} Bxe2 {[%emt 0:03:04]} 21. Rxe2 {[%emt 0:00:08]} a4 {[%emt 0:02:45]} 22. bxa4 {[%emt 0:08:56]} cxd4 {[%emt 0:03:12]} 23. Qxd4 {[%emt 0:02:32]} Rc6 {[%emt 0:02:54]} 24. Bc3 {[%emt 0:23:59]} Ne5 {[%emt 0:11:57]} 25. Bb4 {[%emt 0:04:11]} Rxc4 {[%emt 0:01:20]} 26. Qxb6 {[%emt 0:01:39]} Nd5 {[%emt 0:00:34]} 27. Qa6 {[%emt 0:02:25]} Ra8 {[%emt 0:06:31]} 28. Qxd6 {[%emt 0:05:24]} Qxd6 {[%emt 0:00:44]} 29. Bxd6 {[%emt 0:00:04]} Nc3 {[%emt 0:00:08]} 30. Bxe5 {[%emt 0:00:11]} Nxd1 {[%emt 0:02:37]} 31. Rd2 {[%emt 0:02:25]} Nc3 {[%emt 0:01:52]} 32. Rc2 {[%emt 0:01:12]} Rac8 {[%emt 0:00:21]} 33. a5 {[%emt 0:00:13]} f6 {[%emt 0:06:21]} 34. Bd6 {[%emt 0:01:12]} Nb5 {[%emt 0:03:51]} 35. Rxc4 {[%emt 0:00:07]} Rxc4 {[%emt 0:00:04]} 36. Bb4 {[%emt 0:00:11]} Kf7 {[%emt 0:05:48]} 37. Kf1 {[%emt 0:00:42]} e5 {[%emt 0:04:35]} 38. Ke2 {[%emt 0:00:42]} Ke6 {[%emt 0:00:09]} 39. Kd3 {[%emt 0:01:29]} Kd5 {[%emt 0:02:34]} 40. Nc2 {[%emt 0:00:00]} e4+ {[%emt 0:00:00]} 41. Kd2 {[%emt 0:04:16]} Rc8 {[%emt 0:01:55]} 42. a4 {[%emt 0:04:52]} Nc7 {[%emt 0:05:43]} 43. Nd4 {[%emt 0:02:25]} Na6 {[%emt 0:00:29]} 44. Ba3 {[%emt 0:04:52]} g6 {[%emt 0:04:09]} 45. g4 {[%emt 0:01:46]} Rc4 {[%emt 0:06:10]} 46. Bf8 {[%emt 0:10:47]} Rxa4 {[%emt 0:02:57]} 47. h4 {[%emt 0:01:08]} h5 {[%emt 0:02:26]} 48. gxh5 {[%emt 0:00:10]} gxh5 {[%emt 0:00:09]} 49. Ne2 {[%emt 0:00:44]} Ke6 {[%emt 0:04:34]} 50. Ng3 {[%emt 0:01:01]} Kf7 {[%emt 0:01:38]} 51. Bd6 {[%emt 0:00:55]} Kg6 {[%emt 0:00:18]} 52. Ke1 {[%emt 0:00:25]} Ra1+ {[%emt 0:01:07]} 53. Ke2 {[%emt 0:03:31]} f5 {[%emt 0:00:17]} 54. Be7 {[%emt 0:00:14]} Rxa5 {[%emt 0:02:16]} 55. Kf1 {[%emt 0:00:21]} Ra1+ {[%emt 0:00:49]} 56. Kg2 {[%emt 0:00:25]} Ra2 {[%emt 0:00:16]} 57. Kf1 {[%emt 0:00:55]} Ra1+ {[%emt 0:01:48]} 58. Kg2 {[%emt 0:00:08]} Re1 {[%emt 0:00:10]} 59. Bd6 {[%emt 0:00:22]} Rd1 {[%emt 0:00:07]} 60. Be7 {[%emt 0:00:32]} Rd7 {[%emt 0:00:45]} 61. Ba3 {[%emt 0:01:07]} Nc7 {[%emt 0:00:58]} 62. Ne2 {[%emt 0:00:31]} Ne6 {[%emt 0:00:31]} 63. Bb4 {[%emt 0:00:28]} Rd1 {[%emt 0:02:56]} 64. Bc3 {[%emt 0:01:01]} f4 {[%emt 0:01:08]} 65. exf4 {[%emt 0:01:00]} Rd3 {[%emt 0:00:42]} 66. Be5 {[%emt 0:00:28]} Rf3 {[%emt 0:00:11]} 67. Bd6 {[%emt 0:01:48]} Ng7 {[%emt 0:00:24]} 68. Be7 {[%emt 0:00:21]} Nf5 {[%emt 0:00:21]} 69. Bg5 {[%emt 0:00:12]} Rd3 {[%emt 0:00:26]} 70. Kf1 {[%emt 0:00:36]} Kf7 {[%emt 0:00:53]} 71. Kg2 {[%emt 0:00:38]} Ke6 {[%emt 0:00:05]} 72. Kf1 {[%emt 0:00:10]} Ra3 {[%emt 0:01:24]} 73. Kg2 {[%emt 0:00:41]} Rb3 {[%emt 0:00:22]} 74. Kf1 {[%emt 0:00:18]} Rb2 {[%emt 0:00:24]} 75. Nc3 {[%emt 0:00:29]} e3 {[%emt 0:00:28]} 76. fxe3 {[%emt 0:00:31]} Nxe3+ {[%emt 0:00:05]} 77. Ke1 {[%emt 0:00:57]} Kf5 {[%emt 0:00:10]} 78. Ne2 {[%emt 0:00:17]} Kg4 {[%emt 0:00:23]} 79. Bf6 {[%emt 0:00:37]} Ra2 {[%emt 0:00:43]} 80. Nc3 {[%emt 0:00:52]} Rc2 {[%emt 0:00:26]} 81. Ne2 {[%emt 0:00:32]} Ng2+ {[%emt 0:00:44]} 82. Kd1 {[%emt 0:00:19]} Rc6 {[%emt 0:00:26]} 83. Be5 {[%emt 0:00:18]} Nxh4 {[%emt 0:00:38]} 84. Nd4 {[%emt 0:00:05]} Rc8 {[%emt 0:00:36]} 85. Ke2 {[%emt 0:01:16]} Ng6 {[%emt 0:00:07]} 86. Ke3 {[%emt 0:00:26]} Nxf4 {[%emt 0:00:32]} 87. Nf3 {[%emt 0:00:33]} Re8 {[%emt 0:00:40]} 88. Ke4 {[%emt 0:00:17]} Ng6 {[%emt 0:00:17]} 89. Nh2+ {[%emt 0:00:08]} Kh3 {[%emt 0:00:09]} 90. Kd4 0-1

[Event "XXVII RUS-chT Premier 2020"]
[Site "Sochi"]
[Date "2020.11.19"]
[Round "1.27"]
[White "Rublevsky, Sergei"]
[Black "Musalov, Ruslan"]
[Result "1-0"]
[ECO "C62"]
[WhiteElo "2653"]
[BlackElo "2348"]
[Annotator "ChessBase"]
[PlyCount "51"]
[EventDate "2020.11.19"]
[EventType "team-tourn"]
[EventCountry "RUS"]
[SourceTitle "playchess.com"]
[Source "ChessBase"]
[SourceQuality "1"]
[TimeControl "40/5400+30:1800+30"]

1. e4 {[%emt 0:00:00]} e5 {[%emt 0:01:08]} 2. Nf3 {[%emt 0:00:00]} Nc6 {[%emt 0:00:07]} 3. Bb5 {[%emt 0:00:00]} d6 {[%emt 0:07:39]} 4. d4 {[%emt 0:00:44]} Bd7 {[%emt 0:00:51]} 5. Nc3 {[%emt 0:01:09]} Nf6 {[%emt 0:00:57]} 6. Bxc6 {[%emt 0:01:35]} Bxc6 {[%emt 0:00:19]} 7. Qd3 {[%emt 0:00:04]} Nd7 {[%emt 0:16:50]} 8. Be3 {[%emt 0:03:12]} exd4 {[%emt 0:02:00]} 9. Nxd4 {[%emt 0:02:03]} Ne5 {[%emt 0:11:48]} 10. Qe2 {[%emt 0:01:14]} Bd7 {[%emt 0:01:06]} 11. O-O-O {[%emt 0:06:37]} Be7 {[%emt 0:03:14]} 12. f3 {[%emt 0:06:29]} c6 {[%emt 0:26:20]} 13. f4 {[%emt 0:12:19]} Bg4 {[%emt 0:09:49]} 14. Nf3 {[%emt 0:00:48]} Nxf3 {[%emt 0:01:20]} 15. gxf3 {[%emt 0:00:06]} Bd7 {[%emt 0:00:10]} 16. Bd4 {[%emt 0:03:44]} Bf8 {[%emt 0:01:08]} 17. Rhg1 {[%emt 0:04:18]} Rg8 {[%emt 0:04:56]} 18. f5 {[%emt 0:02:10]} Qa5 {[%emt 0:01:47]} 19. Bf6 {[%emt 0:05:00]} gxf6 {[%emt 0:05:46]} 20. Rxg8 {[%emt 0:00:13]} O-O-O {[%emt 0:00:02]} 21. Kb1 {[%emt 0:02:40]} b5 {[%emt 0:01:15]} 22. Qf2 {[%emt 0:02:37]} b4 {[%emt 0:00:35]} 23. Ne2 {[%emt 0:00:55]} Kc7 {[%emt 0:00:10]} 24. Qh4 {[%emt 0:02:53]} Qb5 {[%emt 0:01:27]} 25. Nd4 {[%emt 0:02:29]} Qe5 {[%emt 0:00:41]} 26. Qxh7 {[%emt 0:01:40]} 1-0

[Event "XXVII RUS-chT Premier 2020"]
[Site "Sochi"]
[Date "2020.11.19"]
[Round "1.28"]
[White "Truskavetsky, Alexandr"]
[Black "Zvjaginsev, Vadim"]
[Result "0-1"]
[ECO "A41"]
[WhiteElo "2399"]
[BlackElo "2602"]
[Annotator "ChessBase"]
[PlyCount "114"]
[EventDate "2020.11.19"]
[EventType "team-tourn"]
[EventCountry "RUS"]
[SourceTitle "playchess.com"]
[Source "ChessBase"]
[SourceQuality "1"]
[TimeControl "40/5400+30:1800+30"]

1. d4 {[%emt 0:00:00]} d6 {[%emt 0:01:23]} 2. Nf3 {[%emt 0:00:00]} Nf6 {[%emt 0:01:26]} 3. g3 {[%emt 0:04:40]} g6 {[%emt 0:00:31]} 4. Bg2 {[%emt 0:01:09]} Bg7 {[%emt 0:00:11]} 5. O-O {[%emt 0:00:09]} O-O {[%emt 0:00:05]} 6. b3 {[%emt 0:03:53]} a5 {[%emt 0:02:43]} 7. a4 {[%emt 0:07:20]} b6 {[%emt 0:03:05]} 8. Bb2 {[%emt 0:02:57]} Bb7 {[%emt 0:00:29]} 9. Nbd2 {[%emt 0:00:35]} c5 {[%emt 0:04:26]} 10. Re1 {[%emt 0:10:28]} Ne4 {[%emt 0:06:56]} 11. c4 {[%emt 0:17:22]} Ra7 {[%emt 0:09:20]} 12. Nxe4 {[%emt 0:07:43]} Bxe4 {[%emt 0:00:10]} 13. Qd2 {[%emt 0:00:10]} Bxf3 {[%emt 0:06:45]} 14. Bxf3 {[%emt 0:12:04]} cxd4 {[%emt 0:00:55]} 15. Bxd4 {[%emt 0:00:26]} Bxd4 {[%emt 0:00:28]} 16. Qxd4 {[%emt 0:00:05]} Na6 {[%emt 0:01:51]} 17. h4 {[%emt 0:00:47]} Nc5 {[%emt 0:07:04]} 18. Qc3 {[%emt 0:02:17]} Qd7 {[%emt 0:02:28]} 19. Rad1 {[%emt 0:00:57]} Rd8 {[%emt 0:02:47]} 20. h5 {[%emt 0:07:22]} Qe8 {[%emt 0:03:50]} 21. Kg2 {[%emt 0:04:20]} Qf8 {[%emt 0:01:05]} 22. hxg6 {[%emt 0:00:58]} fxg6 {[%emt 0:03:10]} 23. Rh1 {[%emt 0:02:26]} Qf6 {[%emt 0:02:41]} 24. Bd5+ {[%emt 0:02:55]} Kh8 {[%emt 0:03:34]} 25. Qe3 {[%emt 0:02:40]} e6 {[%emt 0:00:47]} 26. Bf3 {[%emt 0:00:29]} Rad7 {[%emt 0:04:30]} 27. Bc6 {[%emt 0:02:26]} Rc7 {[%emt 0:05:13]} 28. Bf3 {[%emt 0:00:07]} Rcd7 {[%emt 0:01:02]} 29. Rh4 {[%emt 0:00:21]} Qe5 {[%emt 0:00:51]} 30. Qh6 {[%emt 0:00:29]} Kg8 {[%emt 0:01:07]} 31. Rdh1 {[%emt 0:02:59]} Rf8 {[%emt 0:02:49]} 32. Rg4 {[%emt 0:01:13]} Rf5 {[%emt 0:03:56]} 33. Rd1 {[%emt 0:01:50]} Qf6 {[%emt 0:03:59]} 34. Qe3 {[%emt 0:01:03]} h5 {[%emt 0:02:28]} 35. Rh4 {[%emt 0:01:51]} Kg7 {[%emt 0:03:26]} 36. Rb1 {[%emt 0:00:37]} Rf7 {[%emt 0:01:22]} 37. b4 {[%emt 0:00:31]} axb4 {[%emt 0:03:40]} 38. Rxb4 {[%emt 0:00:38]} Nd7 {[%emt 0:00:42]} 39. Rb5 {[%emt 0:00:35]} Ne5 {[%emt 0:00:39]} 40. Rf4 {[%emt 0:00:00]} Rxf4 {[%emt 0:00:00]} 41. Qxf4 {[%emt 0:01:19]} Qxf4 {[%emt 0:01:27]} 42. gxf4 {[%emt 0:02:07]} Nxc4 {[%emt 0:04:52]} 43. e3 {[%emt 0:01:48]} Rf5 {[%emt 0:03:02]} 44. Rb4 {[%emt 0:10:47]} Rc5 {[%emt 0:00:12]} 45. e4 {[%emt 0:00:12]} Kf6 {[%emt 0:10:18]} 46. Be2 {[%emt 0:05:53]} d5 {[%emt 0:00:31]} 47. Bd3 {[%emt 0:01:19]} Rc6 {[%emt 0:04:53]} 48. exd5 {[%emt 0:08:11]} exd5 {[%emt 0:00:13]} 49. Rb5 {[%emt 0:00:18]} Rd6 {[%emt 0:01:03]} 50. Kg3 {[%emt 0:00:26]} Na5 {[%emt 0:02:28]} 51. Rb4 {[%emt 0:00:42]} Nb7 {[%emt 0:00:27]} 52. Rd4 {[%emt 0:03:31]} Nc5 {[%emt 0:00:39]} 53. Bc2 {[%emt 0:00:11]} Ne6 {[%emt 0:00:29]} 54. Rd1 {[%emt 0:00:18]} d4 {[%emt 0:00:31]} 55. Kf3 {[%emt 0:00:34]} Nc5 {[%emt 0:00:53]} 56. Rg1 {[%emt 0:00:46]} d3 {[%emt 0:00:17]} 57. Bd1 {[%emt 0:00:04]} Rd4 {[%emt 0:01:50]} 0-1